bitfinex/quotes_BTCUSD_20250410
["timestamp","ask_amount","ask_price","bid_price","bid_amount"]
[1744258851708,0.244702,81732.0,81729.0,0.244708]
[1744258851882,0.01109832,81730.0,81728.0,0.12055382]
[1744258852081,0.244703,81732.0,81729.0,0.244708]
[1744258852281,0.256938,81733.0,81730.0,0.244706]
[1744258853277,0.244691,81736.0,81733.0,0.244698]
[1744258853479,0.244694,81735.0,81733.0,0.244698]
[1744258853685,0.012232,81747.0,81740.0,0.012233]
[1744258853916,0.244672,81742.0,81738.0,0.256917]
[1744258854150,0.244672,81742.0,81738.0,0.244683]
[1744258854462,0.244678,81740.0,81737.0,0.244687]
[1744258854792,0.244659,81747.0,81740.0,0.244677]
[1744258854922,0.244669,81743.0,81740.0,0.012233]
[1744258855130,0.244677,81741.0,81738.0,0.244684]
[1744258856853,0.244678,81740.0,81738.0,0.244684]
[1744258857058,0.244681,81739.0,81737.0,0.244681]
[1744258857258,0.244678,81740.0,81737.0,0.244681]
[1744258857439,0.244682,81739.0,81736.0,0.244689]
[1744258857841,0.012235,81732.0,81727.0,0.244717]
[1744258858042,0.244708,81730.0,81729.0,0.147]
[1744258858236,0.244708,81730.0,81729.0,0.26755382]
[1744258858438,0.01111432,81730.0,81729.0,0.52449982]
[1744258858857,0.256959,81725.0,81711.0,0.34]
[1744258859060,0.256959,81725.0,81710.0,0.14696]
[1744258859276,0.27662343,81725.0,81710.0,0.14696]
[1744258859877,0.28806776,81725.0,81710.0,0.14696]
[1744258860676,0.28806776,81725.0,81707.0,0.0001686]
[1744258861446,0.37379338,81725.0,81707.0,0.0001686]
[1744258861868,0.37379338,81725.0,81707.0,0.2449446]
[1744258862072,0.57379338,81725.0,81707.0,0.2449446]
[1744258862276,0.57379338,81725.0,81707.0,0.0001686]
[1744258862677,0.57379338,81725.0,81712.0,0.24476]
[1744258862678,0.50029338,81725.0,81712.0,0.24476]
[1744258862893,0.48806776,81725.0,81710.0,0.012238]
[1744258863099,0.28806776,81725.0,81710.0,0.012238]
[1744258863294,0.28806776,81725.0,81716.0,0.244749]
[1744258863533,0.28806776,81725.0,81713.0,0.012237]
[1744258863828,0.28806776,81725.0,81711.0,0.244764]
[1744258864134,0.28806776,81725.0,81711.0,0.244763]
[1744258865135,0.28806776,81725.0,81714.0,0.244753]
[1744258865444,0.28806776,81725.0,81717.0,0.012237]
[1744258865632,0.28806776,81725.0,81718.0,0.012237]
[1744258865839,0.03110876,81725.0,81724.0,0.24515139]
[1744258865995,0.27583176,81725.0,81724.0,0.00042539]
[1744258866580,0.26438743,81725.0,81724.0,0.00042539]
[1744258866813,0.25579957,81725.0,81724.0,0.00042539]
[1744258867020,0.26803557,81725.0,81724.0,0.00042539]
[1744258869173,0.27946386,81725.0,81724.0,0.00042539]
[1744258871784,0.26803557,81725.0,81724.0,0.00042539]
[1744258872599,0.34146557,81725.0,81724.0,0.00042539]
[1744258872739,0.44603648,81725.0,81724.0,0.00042539]
[1744258873347,0.46888971,81725.0,81724.0,0.00042539]
[1744258873988,0.68031642,81725.0,81724.0,0.00042539]
[1744258875814,0.68131642,81725.0,81724.0,0.00042539]
[1744258876297,0.60788642,81725.0,81724.0,0.00042539]
[1744258878439,1.06844024,81725.0,81724.0,0.00042539]
[1744258878965,1.08298109,81725.0,81724.0,0.00042539]
[1744258879387,1.22998109,81725.0,81724.0,0.00042539]
[1744258880382,1.09488642,81725.0,81724.0,0.00042539]
[1744258880978,0.85188642,81725.0,81724.0,0.00042539]
[1744258881135,0.65188642,81725.0,81724.0,0.00042539]
[1744258882113,0.62046228,81725.0,81724.0,0.00042539]
[1744258882915,0.64331019,81725.0,81724.0,0.00042539]
[1744258883353,0.64231019,81725.0,81724.0,0.00042539]
[1744258883971,0.65087936,81725.0,81724.0,0.00042539]
[1744258888170,0.31087936,81725.0,81724.0,0.00042539]
[1744258888677,0.05392036,81725.0,81724.0,0.00042539]
[1744258888910,0.04330845,81725.0,81724.0,0.00042539]
[1744258889111,0.28803145,81725.0,81724.0,0.00042539]
[1744258889231,0.27946228,81725.0,81724.0,0.00042539]
[1744258890815,0.28805025,81725.0,81724.0,0.00042539]
[1744258900892,0.02250328,81725.0,81724.0,0.00042539]
[1744258901031,0.26722628,81725.0,81724.0,0.00042539]
[1744258901385,0.25579957,81725.0,81724.0,0.00042539]
[1744258901949,0.26803557,81725.0,81724.0,0.00042539]
[1744258903552,0.27662416,81725.0,81724.0,0.00042539]
[1744258904077,0.37152416,81725.0,81724.0,0.00042539]
[1744258905108,0.57152416,81725.0,81724.0,0.00042539]
[1744258907000,0.57352416,81725.0,81724.0,0.00042539]
[1744258907382,0.91352416,81725.0,81724.0,0.00042539]
[1744258908542,1.12204883,81725.0,81724.0,0.00042539]
[1744258910566,1.13350403,81725.0,81724.0,0.00042539]
[1744258911733,1.12204883,81725.0,81724.0,0.00037667]
[1744258912029,1.52204883,81725.0,81724.0,0.00037667]
[1744258912776,1.29205416,81725.0,81724.0,0.00037667]
[1744258913076,1.09205416,81725.0,81724.0,0.00037667]
[1744258913696,0.69205416,81725.0,81724.0,0.00037667]
[1744258917075,0.89205416,81725.0,81724.0,0.00037667]
[1744258920217,0.69205416,81725.0,81724.0,0.00037667]
[1744258920422,0.02166516,81725.0,81724.0,0.25733867]
[1744258920798,0.01058859,81725.0,81724.0,0.00037667]
[1744258921028,0.02188246,81725.0,81724.0,0.00037667]
[1744258921160,0.01058859,81725.0,81724.0,0.24510267]
[1744258921502,0.258959,81725.0,81724.0,0.00037667]
[1744258921805,0.01330914,81725.0,81724.0,0.25733867]
[1744258921950,0.01330914,81725.0,81724.0,0.00037667]
[1744258922998,0.01330914,81725.0,81724.0,0.25733867]
[1744258923319,0.01330914,81725.0,81724.0,0.47439249]
[1744258923579,0.002,81725.0,81724.0,0.47439249]
[1744258923799,0.002,81725.0,81724.0,0.51242625]
[1744258924195,0.244674,81742.0,81738.0,0.244681]
[1744258924391,0.012234,81739.0,81737.0,0.0477]
[1744258924599,0.244687,81737.0,81733.0,0.244698]
[1744258924742,0.24469,81736.0,81733.0,0.244698]
[1744258924936,0.25610598,81736.0,81733.0,0.244698]
[1744258925324,0.25610598,81736.0,81734.0,0.244695]
[1744258925325,0.01141598,81736.0,81734.0,0.244695]
[1744258925730,0.01141598,81736.0,81732.0,0.2447]
[1744258925952,0.256956,81726.0,81725.0,0.0477]
[1744258926133,0.244718,81727.0,81725.0,0.0477]
[1744258926300,0.25626241,81726.0,81725.0,0.0477]
[1744258926735,0.01154241,81726.0,81725.0,0.0477]
[1744258927015,0.244715,81728.0,81725.0,0.292423]
[1744258927232,0.012235,81730.0,81725.0,0.304659]
[1744258927627,0.012235,81730.0,81725.0,0.292423]
[1744258927815,0.01154241,81729.0,81725.0,0.292423]
[1744258928013,0.01154241,81729.0,81728.0,0.256949]
[1744258928233,0.07343,81735.0,81732.0,0.244701]
[1744258928481,0.244649,81750.0,81745.0,0.244663]
[1744258928690,0.244667,81744.0,81741.0,0.244675]
[1744258928894,0.244664,81745.0,81742.0,0.24467]
[1744258929778,0.244667,81744.0,81740.0,0.256908]
[1744258930160,0.07343,81740.0,81728.0,0.0477]
[1744258930535,0.244695,81735.0,81729.0,0.012235]
[1744258930726,0.244695,81735.0,81728.0,0.0477]
[1744258930727,0.244702,81732.0,81728.0,0.0477]
[1744258930906,0.244707,81731.0,81728.0,0.292411]
[1744258931488,0.244711,81729.0,81728.0,0.0477]
[1744258931709,0.244717,81727.0,81726.0,0.14684]
[1744258931914,0.244714,81728.0,81726.0,0.14684]
[1744258932115,0.244714,81728.0,81726.0,0.391559]
[1744258932309,0.012235,81730.0,81726.0,0.391559]
[1744258932628,0.244707,81731.0,81727.0,0.244716]
[1744258932879,0.244705,81731.0,81728.0,0.244713]
[1744258934211,0.244705,81731.0,81726.0,0.14684]
[1744258934398,0.244716,81728.0,81726.0,0.14684]
[1744258934602,0.244713,81729.0,81726.0,0.391559]
[1744258935507,0.24456405,81729.0,81726.0,0.391559]
[1744258935658,0.256937,81732.0,81729.0,0.24471]
[1744258935863,0.24469,81736.0,81733.0,0.244696]
[1744258936098,0.256924,81736.0,81733.0,0.244698]
[1744258936278,0.256924,81736.0,81732.0,0.244702]
[1744258936718,0.244694,81735.0,81732.0,0.244702]
[1744258937142,0.012232,81748.0,81740.0,0.012233]
[1744258937345,0.01145828,81747.0,81744.0,0.012233]
[1744258937517,0.24466,81746.0,81743.0,0.244666]
[1744258937720,0.01146532,81745.0,81740.0,0.25691]
[1744258937922,0.244667,81744.0,81740.0,0.25691]
[1744258938187,0.01149075,81743.0,81740.0,0.25691]
[1744258938360,0.01149075,81743.0,81741.0,0.244673]
[1744258938777,0.01149075,81743.0,81742.0,0.244672]
[1744258939110,0.244663,81745.0,81742.0,0.244672]
[1744258939317,0.01150346,81744.0,81742.0,0.244672]
[1744258939510,0.25616946,81744.0,81741.0,0.256906]
[1744258939715,0.25616946,81744.0,81741.0,0.244673]
[1744258939959,0.25617146,81744.0,81741.0,0.244673]
[1744258940157,0.244671,81743.0,81740.0,0.244677]
[1744258940330,0.244671,81743.0,81741.0,0.244675]
[1744258940538,0.256902,81743.0,81739.0,0.24468]
[1744258940737,0.25618564,81742.0,81740.0,0.244678]
[1744258940919,0.01151364,81742.0,81740.0,0.244678]
[1744258941119,0.25618764,81742.0,81739.0,0.36523382]
[1744258941318,0.01151364,81742.0,81740.0,0.244677]
[1744258942355,0.256908,81741.0,81739.0,0.12055382]
[1744258942561,0.244675,81741.0,81739.0,0.12055382]
[1744258942772,0.01149838,81740.0,81739.0,0.12055382]
[1744258942975,0.25617638,81740.0,81739.0,0.12055382]
[1744258943594,0.01149838,81740.0,81739.0,0.12055382]
[1744258943947,0.01149838,81740.0,81739.0,0.36523482]
[1744258944469,0.01149838,81740.0,81739.0,0.12055382]
[1744258944877,0.01149838,81740.0,81739.0,0.36523482]
[1744258945075,0.256921,81737.0,81736.0,0.0459]
[1744258945320,0.256921,81737.0,81731.0,0.0459]
[1744258945321,0.256937,81732.0,81731.0,0.0459]
[1744258945493,0.012235,81731.0,81726.0,0.14684]
[1744258945695,0.244714,81728.0,81727.0,0.12055382]
[1744258945896,0.244714,81728.0,81727.0,0.14672]
[1744258945897,0.26851462,81728.0,81727.0,0.14672]
[1744258946732,0.25627962,81728.0,81727.0,0.14672]
[1744258947537,0.01156562,81728.0,81727.0,0.403672]
[1744258947763,0.244703,81732.0,81729.0,0.244708]
[1744258947938,0.244706,81731.0,81728.0,0.256943]
[1744258948099,0.244703,81732.0,81729.0,0.24471]
[1744258948522,0.012234,81733.0,81729.0,0.24471]
[1744258948940,0.244702,81732.0,81729.0,0.24471]
[1744258950380,0.244701,81733.0,81728.0,0.256943]
[1744258950544,0.244701,81733.0,81729.0,0.012235]
[1744258951349,0.244701,81733.0,81729.0,0.256943]
[1744258951557,0.244698,81735.0,81731.0,0.012235]
[1744258951743,0.244693,81735.0,81731.0,0.256939]
[1744258951892,0.256911,81740.0,81736.0,0.24469]
[1744258952240,0.244682,81739.0,81736.0,0.244688]
[1744258952429,0.25619047,81739.0,81736.0,0.244688]
[1744258953195,0.01150847,81739.0,81737.0,0.25692]
[1744258953423,0.01150847,81739.0,81738.0,0.256918]
[1744258953665,0.012232,81749.0,81744.0,0.244665]
[1744258953889,0.012233,81746.0,81729.0,0.24471]
[1744258954121,0.244677,81741.0,81738.0,0.02281457]
[1744258954569,0.01152373,81740.0,81738.0,0.26749657]
[1744258954816,0.01152373,81740.0,81739.0,0.244681]
[1744258955007,0.244672,81742.0,81739.0,0.244681]
[1744258955138,0.01152373,81740.0,81739.0,0.244681]
[1744258955581,0.01152373,81740.0,81738.0,0.256916]
[1744258955801,0.244676,81741.0,81738.0,0.256916]
[1744258956006,0.01152881,81739.0,81738.0,0.256916]
[1744258956329,0.0115339,81739.0,81738.0,0.256916]
[1744258956547,0.24468,81740.0,81737.0,0.244681]
[1744258956747,0.0115339,81739.0,81738.0,0.244684]
[1744258958910,0.0115339,81739.0,81737.0,0.244681]
[1744258959204,0.0115339,81739.0,81738.0,0.244684]
[1744258959387,0.0115339,81739.0,81737.0,0.256915]
[1744258959589,0.256905,81742.0,81737.0,0.256915]
[1744258959907,0.244681,81739.0,81736.0,0.256923]
[1744258960324,0.256927,81735.0,81734.0,0.14672]
[1744258960614,0.256927,81735.0,81724.0,0.00037667]
[1744258960615,0.256959,81725.0,81724.0,0.00037667]
[1744258960790,0.256959,81725.0,81724.0,0.14709667]
[1744258960981,0.26854187,81725.0,81724.0,0.00037667]
[1744258961318,0.27713038,81725.0,81724.0,0.00037667]
[1744258961772,0.25863315,81725.0,81724.0,0.00037667]
[1744258962141,0.30803315,81725.0,81724.0,0.00037667]
[1744258962345,0.32026915,81725.0,81724.0,0.00037667]
[1744258963245,0.33233766,81725.0,81724.0,0.00037667]
[1744258964977,0.27086915,81725.0,81724.0,0.00037667]
[1744258965467,0.26228064,81725.0,81724.0,0.00037667]
[1744258965703,0.25004464,81725.0,81724.0,0.00037667]
[1744258965884,0.26228064,81725.0,81724.0,0.00037667]
[1744258971220,0.33571064,81725.0,81724.0,0.00037667]
[1744258971552,0.26228064,81725.0,81724.0,0.00037667]
[1744258973745,0.27085188,81725.0,81724.0,0.00037667]
[1744258975409,0.01158287,81725.0,81724.0,0.00037667]
[1744258975611,0.01158287,81725.0,81724.0,0.24510267]
[1744258975833,0.24472,81726.0,81724.0,0.24509967]
[1744258976054,0.01143886,81725.0,81724.0,0.00037667]
[1744258976278,0.25616186,81725.0,81724.0,0.00037667]
[1744258978132,0.01143886,81725.0,81724.0,0.24510267]
[1744258978337,0.244711,81729.0,81724.0,0.00037667]
[1744258978538,0.01143886,81725.0,81724.0,0.24510267]
[1744258978708,0.244694,81735.0,81731.0,0.244702]
[1744258978927,0.244697,81734.0,81731.0,0.244702]
[1744258979133,0.25610849,81734.0,81731.0,0.244702]
[1744258979628,0.01141149,81734.0,81732.0,0.244701]
[1744258979819,0.01141149,81734.0,81733.0,0.244699]
[1744258979998,0.244688,81737.0,81733.0,0.244699]
[1744258979999,0.244693,81735.0,81733.0,0.244699]
[1744258980294,0.0114293,81734.0,81733.0,0.244699]
[1744258980505,0.244686,81738.0,81734.0,0.244694]
[1744258980794,0.244686,81738.0,81728.0,0.244713]
[1744258980795,0.244695,81735.0,81732.0,0.244702]
[1744258981153,0.0114293,81734.0,81733.0,0.244698]
[1744258981569,0.012235,81731.0,81725.0,0.244723]
[1744258981794,0.244708,81730.0,81727.0,0.244714]
[1744258982015,0.256959,81725.0,81724.0,0.00037667]
[1744258982387,0.26839339,81725.0,81724.0,0.00037667]
[1744258983592,0.38852339,81725.0,81724.0,0.00037667]
[1744258986361,0.34182339,81725.0,81724.0,0.00037667]
[1744258986539,0.26839339,81725.0,81724.0,0.00037667]
[1744258987505,0.48549857,81725.0,81724.0,0.00037667]
[1744258988942,0.48649857,81725.0,81724.0,0.00037667]
[1744258991645,0.88649857,81725.0,81724.0,0.00037667]
[1744258993142,1.08649857,81725.0,81724.0,0.00037667]
[1744258995105,0.88649857,81725.0,81724.0,0.00037667]
[1744258995990,1.08649857,81725.0,81724.0,0.00037667]
[1744258997052,0.88649857,81725.0,81724.0,0.00037667]
[1744258997250,0.89795327,81725.0,81724.0,0.00037667]
[1744258997608,0.7628586,81725.0,81724.0,0.00037667]
[1744258997821,0.3628586,81725.0,81724.0,0.00037667]
[1744258998671,0.3618586,81725.0,81724.0,0.00037667]
[1744258999420,0.3504039,81725.0,81724.0,0.00037667]
[1744259002059,0.5504039,81725.0,81724.0,0.00037667]
[1744259002278,0.73219857,81725.0,81724.0,0.00037667]
[1744259005055,0.3514039,81725.0,81724.0,0.00037667]
[1744259005496,0.2779739,81725.0,81724.0,0.00037667]
[1744259005897,0.0210149,81725.0,81724.0,0.00037667]
[1744259006095,0.2657379,81725.0,81724.0,0.00037667]
[1744259006297,0.2779739,81725.0,81724.0,0.00037667]
[1744259007196,0.2769739,81725.0,81724.0,0.00037667]
[1744259009188,0.0200149,81725.0,81724.0,0.00037667]
[1744259009388,0.0200149,81725.0,81724.0,0.30683867]
[1744259009594,0.244708,81730.0,81725.0,0.24472]
[1744259009795,0.244711,81730.0,81726.0,0.244717]
[1744259010019,0.25613105,81729.0,81726.0,0.244717]
[1744259010218,0.244714,81728.0,81724.0,0.31743615]
[1744259010431,0.01142005,81729.0,81725.0,0.02283348]
[1744259010637,0.25614214,81727.0,81725.0,0.02283348]
[1744259010831,0.244716,81728.0,81726.0,0.02283348]
[1744259011447,0.244716,81728.0,81727.0,0.02283348]
[1744259012348,0.25613468,81728.0,81727.0,0.02283348]
[1744259012769,0.25713468,81728.0,81727.0,0.02283348]
[1744259013551,0.26936968,81728.0,81727.0,0.02283348]
[1744259013767,0.25713468,81728.0,81727.0,0.02283348]
[1744259014344,0.26936968,81728.0,81727.0,0.02283348]
[1744259014558,0.26836968,81728.0,81727.0,0.02283348]
[1744259016774,0.256956,81726.0,81725.0,0.02283348]
[1744259017172,0.26838486,81726.0,81725.0,0.02283348]
[1744259018433,0.01142886,81726.0,81725.0,0.02283348]
[1744259018660,0.01142886,81726.0,81725.0,0.32929248]
[1744259018973,0.244694,81735.0,81731.0,0.244702]
[1744259019221,0.244694,81735.0,81730.0,0.256943]
[1744259019222,0.244687,81737.0,81732.0,0.012235]
[1744259019422,0.25428464,81734.0,81730.0,0.306142]
[1744259019581,0.244696,81734.0,81731.0,0.244705]
[1744259019816,0.00959882,81733.0,81732.0,0.26753548]
[1744259020993,0.244665,81745.0,81738.0,0.244684]
[1744259021199,0.244669,81744.0,81740.0,0.256908]
[1744259021399,0.444648,81750.0,81745.0,0.012233]
[1744259021615,0.444648,81750.0,81744.0,0.24466]
[1744259021616,0.244654,81748.0,81744.0,0.24466]
[1744259021973,0.244657,81747.0,81745.0,0.02283348]
[1744259022173,0.256893,81746.0,81745.0,0.02283348]
[1744259022371,0.256893,81746.0,81737.0,0.0495]
[1744259022372,0.256905,81742.0,81741.0,0.02283348]
[1744259022805,0.256915,81739.0,81738.0,0.02283348]
[1744259023334,0.24469,81736.0,81734.0,0.02283348]
[1744259023476,0.25692,81738.0,81735.0,0.244691]
[1744259023676,0.25692,81738.0,81734.0,0.02283348]
[1744259023677,0.244687,81737.0,81734.0,0.26752648]
[1744259023880,0.244687,81737.0,81735.0,0.02283348]
[1744259024195,0.244684,81738.0,81735.0,0.26752548]
[1744259024402,0.256915,81739.0,81736.0,0.26752348]
[1744259024584,0.244687,81737.0,81736.0,0.02283348]
[1744259024779,0.244687,81737.0,81735.0,0.244692]
[1744259025086,0.244687,81737.0,81735.0,0.26752548]
[1744259025427,0.244687,81737.0,81735.0,0.244692]
[1744259026223,0.244681,81739.0,81736.0,0.24469]
[1744259026627,0.256905,81742.0,81738.0,0.244683]
[1744259026834,0.012233,81746.0,81740.0,0.244675]
[1744259027046,0.2,81755.0,81752.0,0.012232]
[1744259027243,0.2,81755.0,81754.0,0.256866]
[1744259028218,0.00042515,81755.0,81754.0,0.244635]
[1744259028371,0.00442515,81755.0,81754.0,0.244635]
[1744259028578,0.00942515,81755.0,81753.0,0.244638]
[1744259029298,0.00542515,81755.0,81753.0,0.244638]
[1744259029505,0.00542515,81755.0,81754.0,0.244636]
[1744259029863,0.00042515,81755.0,81754.0,0.244636]
[1744259030775,0.00342515,81755.0,81754.0,0.244636]
[1744259030983,0.00842515,81755.0,81754.0,0.244636]
[1744259031339,0.00542515,81755.0,81752.0,0.244636]
[1744259031544,0.25405815,81755.0,81752.0,0.244636]
[1744259031843,0.01442515,81755.0,81753.0,0.244636]
[1744259032143,0.01042515,81755.0,81753.0,0.244636]
[1744259032324,0.01042515,81755.0,81754.0,0.244636]
[1744259032645,0.01342515,81755.0,81754.0,0.244636]
[1744259032963,0.00342515,81755.0,81754.0,0.256867]
[1744259033173,0.00342515,81755.0,81754.0,0.42352082]
[1744259033868,0.00342515,81755.0,81754.0,0.59277483]
[1744259034349,0.00342515,81755.0,81754.0,0.26737001]
[1744259034350,0.00542515,81755.0,81754.0,0.26737001]
[1744259034544,0.00842515,81755.0,81754.0,0.26737001]
[1744259034750,0.00842515,81755.0,81754.0,0.256867]
[1744259034944,0.25985586,81755.0,81753.0,0.26737101]
[1744259035173,0.00542515,81755.0,81753.0,0.26737101]
[1744259035382,0.00542515,81755.0,81754.0,0.256867]
[1744259035570,0.00542515,81755.0,81754.0,0.27960101]
[1744259036114,0.00042515,81755.0,81754.0,0.27960101]
[1744259036311,0.00042515,81755.0,81754.0,0.40015483]
[1744259036829,0.00042515,81755.0,81754.0,0.37742082]
[1744259037785,0.00042515,81755.0,81754.0,0.40014734]
[1744259038208,0.00042515,81755.0,81754.0,0.53435634]
[1744259038412,0.00042515,81755.0,81754.0,0.54658734]
[1744259038588,0.00042515,81755.0,81754.0,0.52386082]
[1744259039572,0.00042515,81755.0,81754.0,0.54659409]
[1744259040131,0.00042515,81755.0,81754.0,0.59259409]
[1744259041587,0.00042515,81755.0,81754.0,0.63999409]
[1744259041810,0.00042515,81755.0,81754.0,0.97999409]
[1744259042460,3.5e-07,81760.0,81757.0,0.596858]
[1744259042659,0.0001278,81760.0,81759.0,0.79857482]
[1744259042904,0.0001278,81760.0,81759.0,0.84863413]
[1744259043407,0.0001278,81760.0,81759.0,0.88590825]
[1744259043558,0.00023605,81762.0,81761.0,0.596845]
[1744259043761,2e-07,81764.0,81763.0,0.70477985]
[1744259043967,2e-07,81764.0,81763.0,0.84806694]
[1744259044168,8e-07,81769.0,81768.0,0.70476385]
[1744259044369,8e-07,81769.0,81768.0,0.84805094]
[1744259044774,8e-07,81769.0,81768.0,0.88582352]
[1744259044973,2e-07,81778.0,81777.0,0.596795]
[1744259045198,2e-07,81778.0,81777.0,0.95714882]
[1744259045495,2e-07,81778.0,81777.0,0.97988209]
[1744259048776,2e-07,81778.0,81777.0,0.98914233]
[1744259051654,2e-07,81778.0,81777.0,0.98910233]
[1744259052020,2e-07,81778.0,81777.0,0.94170233]
[1744259052216,2e-07,81778.0,81777.0,0.89570233]
[1744259060398,2e-07,81778.0,81777.0,0.53421409]
[1744259060601,2e-07,81778.0,81777.0,0.54644209]
[1744259064971,0.28950285,81787.0,81784.0,0.244544]
[1744259065169,0.244546,81784.0,81780.0,0.256785]
[1744259065351,0.26731737,81786.0,81783.0,0.244549]
[1744259065832,0.26731737,81786.0,81784.0,0.02273327]
[1744259066020,0.25509037,81786.0,81784.0,0.02273327]
[1744259066220,0.25509037,81786.0,81784.0,0.26727727]
[1744259066221,0.01054937,81786.0,81784.0,0.26727727]
[1744259066463,0.01054937,81786.0,81785.0,0.02273327]
[1744259066835,0.25508937,81786.0,81785.0,0.02273327]
[1744259067013,0.01054937,81786.0,81785.0,0.02273327]
[1744259067539,0.25508937,81786.0,81785.0,0.02273327]
[1744259067831,0.01054937,81786.0,81785.0,0.02273327]
[1744259068033,0.25508937,81786.0,81785.0,0.02273327]
[1744259068284,0.26731637,81786.0,81785.0,0.02273327]
[1744259069085,0.256789,81779.0,81778.0,0.02273327]
[1744259069457,0.26706085,81779.0,81778.0,0.02273327]
[1744259071092,0.25483285,81779.0,81778.0,0.02273327]
[1744259072180,0.01027185,81779.0,81778.0,0.02273327]
[1744259072379,0.25483285,81779.0,81778.0,0.02273327]
[1744259072616,0.01027185,81779.0,81778.0,0.02273327]
[1744259072826,0.01027185,81779.0,81778.0,0.26729727]
[1744259072974,0.244561,81780.0,81778.0,0.02273327]
[1744259073322,0.01027185,81779.0,81778.0,0.02273327]
[1744259073476,0.01027185,81779.0,81777.0,0.390926]
[1744259073813,0.01027185,81779.0,81778.0,0.256792]
[1744259074017,0.01027185,81779.0,81778.0,0.2795738]
[1744259074215,0.244549,81783.0,81779.0,0.244559]
[1744259074450,0.244552,81782.0,81779.0,0.244559]
[1744259074636,0.244561,81779.0,81778.0,0.0227818]
[1744259075353,0.244558,81781.0,81778.0,0.0227818]
[1744259075506,0.24455,81783.0,81779.0,0.244559]
[1744259075705,0.24455,81783.0,81780.0,0.0227818]
[1744259075706,0.256778,81783.0,81780.0,0.0227818]
[1744259075907,0.244555,81782.0,81780.0,0.0227818]
[1744259076091,0.244555,81782.0,81779.0,0.0227818]
[1744259076295,0.244557,81781.0,81779.0,0.0227818]
[1744259076490,0.256785,81780.0,81776.0,0.2673518]
[1744259076696,0.256785,81780.0,81777.0,0.244567]
[1744259076917,0.244565,81778.0,81776.0,0.0227818]
[1744259077118,0.244567,81777.0,81773.0,0.244577]
[1744259077317,0.244574,81775.0,81773.0,0.12055382]
[1744259077577,0.012228,81777.0,81774.0,0.26736573]
[1744259077780,0.256797,81777.0,81774.0,0.26736573]
[1744259077903,0.256801,81775.0,81774.0,0.02278973]
[1744259078097,0.244579,81773.0,81772.0,0.14632]
[1744259078357,0.244577,81774.0,81772.0,0.14632]
[1744259078712,0.244577,81774.0,81773.0,0.022795]
[1744259079231,0.305905,81774.0,81773.0,0.022795]
[1744259079471,0.256807,81773.0,81772.0,0.14632]
[1744259079643,0.256807,81773.0,81757.0,0.244625]
[1744259079644,0.01223,81764.0,81757.0,0.14632]
[1744259079847,0.24461,81763.0,81757.0,0.158551]
[1744259080047,0.25684,81763.0,81760.0,0.244616]
[1744259080234,0.00839095,81762.0,81760.0,0.244617]
[1744259080441,0.01223,81764.0,81760.0,0.244617]
[1744259080617,0.00837062,81761.0,81760.0,0.244617]
[1744259080835,0.01223,81764.0,81760.0,0.244617]
[1744259081036,0.00838079,81761.0,81760.0,0.244617]
[1744259081259,0.244618,81760.0,81757.0,0.390945]
[1744259081537,0.00839095,81759.0,81758.0,0.256852]
[1744259081740,0.244609,81763.0,81760.0,0.244616]
[1744259081958,0.244609,81763.0,81761.0,0.244614]
[1744259082195,0.00838079,81762.0,81761.0,0.244614]
[1744259085819,0.00838079,81762.0,81760.0,0.244616]
[1744259087318,0.00805661,81762.0,81760.0,0.244616]
[1744259087921,0.00805661,81762.0,81761.0,0.244615]
[1744259088275,0.244608,81764.0,81761.0,0.256845]
[1744259088615,0.244617,81761.0,81757.0,0.158551]
[1744259088797,0.00829087,81763.0,81758.0,0.244622]
[1744259088993,0.0083112,81760.0,81758.0,0.244622]
[1744259089159,0.244615,81761.0,81758.0,0.244622]
[1744259089357,0.244615,81761.0,81758.0,0.26741526]
[1744259089583,0.00830612,81760.0,81758.0,0.26741526]
[1744259090011,0.244621,81759.0,81758.0,0.02279326]
[1744259090375,0.0083112,81759.0,81758.0,0.244624]
[1744259091935,0.256855,81758.0,81757.0,0.14632]
[1744259092075,0.256874,81752.0,81748.0,0.244653]
[1744259092283,0.244643,81752.0,81750.0,0.00012745]
[1744259092505,0.00835695,81751.0,81750.0,0.00012745]
[1744259094049,0.25300195,81751.0,81750.0,0.00012745]
[1744259094245,0.25300195,81751.0,81750.0,0.24477545]
[1744259094246,0.00835695,81751.0,81750.0,0.24477545]
[1744259094403,0.244642,81752.0,81750.0,0.24477545]
[1744259094602,0.00835186,81751.0,81750.0,0.24477545]
[1744259095158,0.244626,81758.0,81751.0,0.012232]
[1744259095311,0.244617,81761.0,81757.0,0.012231]
[1744259095505,0.244618,81760.0,81757.0,0.256858]
[1744259095708,0.244618,81760.0,81758.0,0.244624]
[1744259095935,0.244626,81758.0,81756.0,0.244629]
[1744259096336,0.256853,81759.0,81756.0,0.244629]
[1744259096546,0.244626,81758.0,81754.0,0.256862]
[1744259097283,0.244626,81758.0,81756.0,0.24463]
[1744259097499,0.244626,81758.0,81755.0,0.244632]
[1744259098160,0.244626,81759.0,81756.0,0.244629]
[1744259098323,0.244619,81760.0,81757.0,0.244625]
[1744259098528,0.256845,81761.0,81755.0,0.012231]
[1744259098879,0.244618,81760.0,81757.0,0.244624]
[1744259099081,0.01223,81763.0,81757.0,0.012231]
[1744259099256,0.01223,81762.0,81758.0,0.26745063]
[1744259099461,0.244621,81759.0,81758.0,0.02282963]
[1744259099638,0.01223,81760.0,81758.0,0.02282963]
[1744259099844,0.012231,81757.0,81756.0,0.02282963]
[1744259100049,0.256858,81757.0,81756.0,0.02282963]
[1744259100254,0.244632,81756.0,81754.0,0.02282963]
[1744259100477,0.244605,81765.0,81762.0,0.244612]
[1744259100803,0.489065,81789.0,81760.0,0.01223]
[1744259100804,0.012229,81767.0,81760.0,0.01223]
[1744259100979,0.244609,81763.0,81759.0,0.012231]
[1744259101301,0.24461,81763.0,81761.0,0.244615]
[1744259101448,0.244606,81764.0,81760.0,0.02282963]
[1744259101651,0.244606,81764.0,81760.0,0.27967663]
[1744259101853,0.244611,81763.0,81760.0,0.27967663]
[1744259102112,0.244611,81763.0,81761.0,0.02282963]
[1744259102297,0.00691634,81762.0,81761.0,0.02282963]
[1744259102455,0.25152834,81762.0,81761.0,0.02282963]
[1744259102854,0.256845,81761.0,81760.0,0.02282963]
[1744259103432,0.26373523,81761.0,81760.0,0.02282963]